[Event "Hungarian Youth-ch U16 2022"]
[Site "Eger"]
[Date "2022.07.30"]
[Round "8.6"]
[White "Karacsonyi, Kata"]
[Black "Sipos, Stefania"]
[Result "1-0"]
[ECO "C41"]
[WhiteElo "2147"]
[BlackElo "1802"]
[Annotator "TA"]
[PlyCount "108"]
[EventDate "2022.07.21"]
[EventType "tourn"]
[EventCountry "HUN"]
[SourceTitle "playchess.com"]
[Source "ChessBase"]
[SourceQuality "1"]
[TimeControl "40/5400+30:1800+30"]

{[%evp 12,108,41,13,0,0,0,-23,0,0,-23,-17,8,0,2,-4,0,-2,5,-21,0,0,20,-10,-7,-8,-9,-12,0,0,-3,0,0,-25,0,0,0,0,0,0,0,0,0,-102,-16,-14,125,115,106,84,82,68,243,231,224,193,242,245,220,220,264,260,272,270,339,328,300,293,270,225,206,160,479,453,514,494,816,795,2360,2398,2237,2036,2825,2249,8826,7768,29964,29966,29974,29975,29979,29980,29982,29983,29983,29982,29982,29984,29983]} 1. e4 {[%emt 0:00:32]} e5 {[%emt 0:00:42]} 2. Nf3 {[%emt 0:00:08]} d6 {[%emt 0:00:11]} 3. d4 {[%emt 0:00:27]} exd4 {[%emt 0:00:18]} 4. Nxd4 {[%emt 0:00:09]} Nf6 {[%emt 0:00:14][%cal Bg8f6,Bf6d7,Bd7e5][%mdl 32]} 5. Nc3 {[%emt 0:00:59]} g6 {[%emt 0:00:32]} (5... Be7) 6. Be2 {[%emt 0:04:01]} Bg7 {[%emt 0:00:30]} 7. Be3 {[%emt 0:01:35]} O-O {[%emt 0:01:16] C41: Philidor Defence.} 8. f3 {[%emt 0:20:10] [#]} d5 $146 {[%emt 0:09:18]} ({Predecessor:} 8... Nc6 9. Qd2 Bd7 10. O-O-O a6 11. g4 b5 12. h4 h5 13. g5 Ne8 14. f4 Nxd4 15. Bxd4 {1-0 (27) Johnson,B (2104)-Nugumanov,B (2364) Chess.com INT 2022}) 9. e5 {[%emt 0:08:38]} (9. Bg5 $5 {[%cal Re4e5]} h6 10. Bxf6 Qxf6 {[#]} 11. Nxd5 $1 Qxd4 12. Qxd4 Bxd4 13. Nxc7 $11) 9... Nfd7 {[%emt 0:01:39] Black has an edge.} 10. e6 {[%emt 0:04:04]} Ne5 {[%emt 0:08:14]} 11. f4 {[%emt 0:14:41]} Nec6 {[%emt 0:05:26]} 12. exf7+ {[%emt 0:01:03]} Rxf7 {[%emt 0:00:22]} 13. O-O {[%emt 0:03:57]} Nxd4 {[%emt 0:23:21]} 14. Bxd4 {[%emt 0:00:14]} c6 {[%emt 0:00:54]} 15. Kh1 {[%emt 0:03:43]} Bf5 {[%emt 0:03:23][%cal Of5c2]} 16. Bxg7 {[%emt 0:03:06]} Kxg7 {[%emt 0:01:12]} 17. Qd2 {[%emt 0:08:03]} (17. g4 $5 {[%cal Rg4f5]} Bd7 18. f5 $14) 17... Nd7 {[%emt 0:10:40]} 18. Rae1 {[%emt 0:09:12] Black must now prevent g4.} Nf6 {[%emt 0:04:24] Inhibits g4.} 19. Bd3 {[%emt 0:01:10]} Qd7 {[%emt 0:09:09]} 20. Bxf5 {[%emt 0:05:51]} Qxf5 {[%emt 0:00:32]} 21. Re5 {[%emt 0:00:51]} Qd7 {[%emt 0:02:08]} 22. h3 {[%emt 0:01:51]} Re8 {[%emt 0:02:34]} 23. Qd4 {[%emt 0:00:30]} Rfe7 {[%emt 0:07:59]} 24. Rfe1 {[%emt 0:00:42]} b6 {[%emt 0:02:03]} 25. b4 {[%emt 0:01:40]} Re6 {[%emt 0:01:57]} 26. g4 {[%emt 0:01:18]} Kg8 {[%emt 0:03:38]} 27. f5 {[%emt 0:00:35]} (27. Kg2 $11 {remains equal.}) 27... Rxe5 {[%emt 0:00:24]} ({Black should play} 27... gxf5 $17 {[%cal Oc6c5] ...c5! is the strong threat.} 28. gxf5 Rxe5 29. Rxe5 Kf7 30. Rxe8 Nxe8) 28. Rxe5 $11 {[%emt 0:00:02]} c5 {[%emt 0:00:55]} (28... Kf7 $11) 29. bxc5 $16 {[%emt 0:01:12]} ({Don't play} 29. Nxd5 $6 Nxd5 30. Rxe8+ (30. Rxd5 Qb5 $11) (30. Qxd5+ Qxd5+ 31. Rxd5 cxb4 $11) 30... Qxe8 $11) 29... bxc5 {[%emt 0:00:13]} 30. Rxe8+ {[%emt 0:00:28]} (30. Nxd5 {with more complications.} Kg7 31. Rxe8 cxd4 32. Re7+) 30... Nxe8 {[%emt 0:00:29]} 31. Qxc5 {[%emt 0:02:45][%mdl 4096] [#] Endgame aiming for fxg6. KQN-KQN. White is more active.} d4 $2 {[%emt 0:00:36] Black cannot hold the game after this.} (31... gxf5 $14 32. Nxd5 (32. Qxd5+ Qxd5+ 33. Nxd5 fxg4 $14) 32... fxg4) 32. Qd5+ {[%emt 0:00:37]} Qxd5+ {[%emt 0:00:07]} 33. Nxd5 {[%emt 0:00:01]} gxf5 $18 {[%emt 0:00:26] KN-KN} (33... Kf7 $142 34. fxg6+ Kxg6 35. Ne7+ Kf6) 34. Ne7+ {[%emt 0:00:08]} ({Much less strong is} 34. gxf5 $6 Ng7 $16) 34... Kf7 {[%emt 0:00:19]} 35. Nxf5 {[%emt 0:00:02]} Ke6 {[%emt 0:00:55]} 36. Nxd4+ {[%emt 0:00:01]} Kd5 {[%emt 0:00:09]} 37. Ne2 {[%emt 0:01:37]} Nf6 {[%emt 0:01:02]} 38. Kg2 {[%emt 0:00:44]} Ke4 {[%emt 0:00:24]} 39. Kf2 {[%emt 0:00:52]} Nd5 {[%emt 0:00:26]} 40. a3 {[%emt 0:00:00] Inhibits Nb4.} Nb6 {[%emt 0:00:00]} 41. Nc3+ {[%emt 0:05:05]} Kd4 $2 {[%emt 0:07:33]} (41... Kf4 $16 {is a better chance.} 42. Ne2+ Ke4) 42. Nb5+ {[%emt 0:01:36]} Kc4 {[%emt 0:00:25]} 43. Nxa7 {[%emt 0:01:13]} Kc3 {[%emt 0:00:42]} (43... Nd5 $142 44. Nc6 Nb6 45. Ne5+ Kd5) 44. Kg3 {[%emt 0:02:49]} Kxc2 {[%emt 0:01:48]} 45. Kh4 {[%emt 0:01:14]} Nd5 {[%emt 0:09:17]} 46. Kg5 {[%emt 0:00:47] Threatens to win with Nb5.} Kb3 {[%emt 0:02:55]} 47. Nb5 {[%emt 0:03:24] Hoping for Kh6.} Ka4 {[%emt 0:03:09]} 48. Nd4 {[%emt 0:00:17] White wants to mate with Kh6.} Kxa3 {[%emt 0:02:24]} 49. Kh6 {[%emt 0:00:33] White mates.} Nf4 {[%emt 0:02:15]} 50. h4 {[%emt 0:00:14]} Ng6 {[%emt 0:00:25]} 51. Nf5 {[%emt 0:01:36]} Ne5 {[%emt 0:01:43]} 52. g5 {[%emt 0:00:26][%cal Bg4g5,Bg5g6][%mdl 32]} Kb4 {[%emt 0:00:32]} 53. Kxh7 {[%emt 0:00:11]} Kc5 {[%emt 0:00:10]} 54. g6 {[%emt 0:00:52]} Kd5 {Weighted Error Value: White=0.12 (very precise) /Black=0.48} 1-0

[Event "Hungarian Youth-ch U16 2022"]
[Site "Eger"]
[Date "2022.07.30"]
[Round "8.6"]
[White "Sipos, Stefania"]
[Black "Kovacs, Veronika"]
[Result "*"]
[ECO "C41"]
[WhiteElo "1802"]
[BlackElo "1633"]
[Annotator "NA RC COMBH"]
[PlyCount "20"]
[EventDate "2022.07.21"]
[EventType "tourn"]
[EventCountry "HUN"]
[SourceTitle "playchess.com"]
[Source "ChessBase"]
[SourceQuality "1"]
[TimeControl "40/5400+30:1800+30"]

{[%evp 10,19,66,32767,32767,32767,32767,0,0,-10,-16,-39]} 1. e4 {[%emt 0:00:32]} e5 {[%emt 0:00:42]} 2. Nf3 {[%emt 0:00:08]} d6 {[%emt 0:00:11]} 3. d4 {[%emt 0:00:27]} exd4 {[%emt 0:00:18]} 4. Nxd4 {[%emt 0:00:09]} Nf6 {[%emt 0:00:14]} 5. Nc3 {[%emt 0:00:59]} g6 {[%emt 0:00:32]} (5... Be7 $11 {might be stronger.}) 6. Be2 {[%emt 0:04:01]} Bg7 {[%emt 0:00:30]} 7. Be3 {[%emt 0:01:35]} O-O {[%emt 0:01:16]} 8. f3 {[%emt 0:20:10]} d5 {[%emt 0:09:18]} 9. e5 {[%emt 0:08:38]} Nfd7 {[%emt 0:01:39]} 10. e6 $15 {[%emt 0:04:04]} Ne5 {[%emt 0:08:14]} *

[Event "Hungarian Youth-ch U16 2022"]
[Site "Eger"]
[Date "2022.07.30"]
[Round "8.7"]
[White "Buri, Petra Zsuzsanna"]
[Black "Karacsonyi, Kata"]
[Result "*"]
[ECO "A13"]
[WhiteElo "1784"]
[BlackElo "2147"]
[Annotator "TA"]
[PlyCount "31"]
[EventDate "2022.07.21"]
[EventType "tourn"]
[EventCountry "HUN"]
[SourceTitle "playchess.com"]
[Source "ChessBase"]
[SourceQuality "1"]
[TimeControl "40/5400+30:1800+30"]

{[%evp 13,18,31,112,95,202,212,200]} 1. c4 {[%emt 0:00:41]} e6 {[%emt 0:01:03]} 2. Nf3 {[%emt 0:00:08]} Nf6 {[%emt 0:00:17]} 3. g3 {[%emt 0:00:16]} d5 {[%emt 0:01:59]} 4. Bg2 {[%emt 0:01:00]} c5 {[%emt 0:01:08]} 5. cxd5 {[%emt 0:02:49]} exd5 {[%emt 0:00:29]} 6. d4 {[%emt 0:00:23]} Nc6 {[%emt 0:04:23]} 7. O-O {[%emt 0:01:38]} b6 {[%emt 0:07:29] [#]} (7... Be7 $14) 8. Nc3 $1 $16 {[%emt 0:08:53] And now Ne5 would win. D30: Queen's Gambit Declined: Systems without Nc3.} h6 {[%emt 0:08:45]} (8... Be7 $16) 9. Ne5 $18 {[%emt 0:16:39]} Bb7 {[%emt 0:04:50] [#]  Weighted Error Value: White=0.00 (flawless) /Black=0.90} {Predecessor:} 10. Qa4 $146 Rc8 11. e4 b5 12. Qxb5 Qb6 13. Qxb6 axb6 14. Nxc6 Bxc6 15. exd5 Bd7 16. Re1+ {1-0 (44) Magalakis,S (2165)-Bakirtzis,K (1223) Kavala 2022} *

[Event "Hungarian Youth-ch U16 2022"]
[Site "Eger"]
[Date "2022.07.30"]
[Round "8.7"]
[White "Kovacs, Veronika"]
[Black "Harkai, Emma"]
[Result "1-0"]
[ECO "A13"]
[WhiteElo "1633"]
[BlackElo "1761"]
[Annotator "NA COMBH"]
[PlyCount "67"]
[EventDate "2022.07.21"]
[EventType "tourn"]
[EventCountry "HUN"]
[SourceTitle "playchess.com"]
[Source "ChessBase"]
[SourceQuality "1"]
[TimeControl "40/5400+30:1800+30"]

1. c4 {[%emt 0:00:41]} e6 {[%emt 0:01:03]} 2. Nf3 {[%emt 0:00:08]} Nf6 {[%emt 0:00:17]} 3. g3 {[%emt 0:00:16]} d5 {[%emt 0:01:59]} 4. Bg2 {[%emt 0:01:00]} c5 {[%emt 0:01:08]} 5. cxd5 {[%emt 0:02:49]} exd5 {[%emt 0:00:29]} 6. d4 {[%emt 0:00:23]} Nc6 {[%emt 0:04:23]} 7. O-O {[%emt 0:01:38]} b6 {[%emt 0:07:29]} 8. Nc3 {[%emt 0:08:53]} h6 {[%emt 0:08:45]} (8... Be7 $16) 9. Ne5 $18 {[%emt 0:16:39]} Bb7 {[%emt 0:04:50]} 10. Qa4 {[%emt 0:05:34]} cxd4 {[%emt 0:18:46]} 11. Nxc6 {[%emt 0:03:45]} Qd7 {[%emt 0:01:21]} 12. Nxd4 {[%emt 0:00:53]} Bc5 {[%emt 0:01:54]} 13. Qxd7+ {[%emt 0:01:08]} Kxd7 {[%emt 0:00:53]} 14. Nb3 {[%emt 0:01:53]} Ne4 {[%emt 0:02:34]} 15. Nxc5+ {[%emt 0:03:12]} bxc5 {[%emt 0:00:47]} 16. Rd1 {[%emt 0:02:09]} Ke6 {[%emt 0:00:29]} 17. Nb5 {[%emt 0:05:37]} Ke7 {[%emt 0:05:00]} 18. Bf4 {[%emt 0:06:34]} g5 {[%emt 0:01:50]} 19. Bxe4 {[%emt 0:01:10]} dxe4 {[%emt 0:00:54]} 20. Bd6+ {[%emt 0:00:16]} Kf6 {[%emt 0:00:23]} 21. Bxc5 {[%emt 0:00:22]} Kg6 {[%emt 0:00:16]} 22. Nxa7 {[%emt 0:01:06]} f6 {[%emt 0:01:40]} 23. Rd6 {[%emt 0:02:10]} Rh7 {[%emt 0:01:05]} 24. Bd4 {[%emt 0:03:16]} Rf7 {[%emt 0:01:54]} 25. Rc1 {[%emt 0:01:48]} Kg7 {[%emt 0:03:16]} 26. a4 {[%emt 0:01:34]} h5 {[%emt 0:02:07]} 27. a5 {[%emt 0:00:32]} e3 {[%emt 0:00:26]} 28. Bxe3 {[%emt 0:02:34]} Be4 {[%emt 0:00:50]} 29. f3 {[%emt 0:00:40]} Bg6 {[%emt 0:00:28]} 30. Nc6 {[%emt 0:03:04]} Re8 {[%emt 0:01:31]} 31. Kf2 {[%emt 0:00:31]} g4 {[%emt 0:01:17]} 32. a6 {[%emt 0:01:30]} f5 {[%emt 0:01:43]} 33. a7 {[%emt 0:00:46]} Rff8 {[%emt 0:00:28]} 34. Nb8 {[%emt 0:00:29]} 1-0

[Event "Hungarian Youth-ch U16 2022"]
[Site "Eger"]
[Date "2022.07.31"]
[Round "9.1"]
[White "Szikszai, Bertalan"]
[Black "Kocsmar, Akos"]
[Result "1/2-1/2"]
[ECO "B51"]
[WhiteElo "2153"]
[BlackElo "2061"]
[Annotator "RC"]
[PlyCount "56"]
[EventDate "2022.07.21"]
[EventType "tourn"]
[EventCountry "HUN"]
[SourceTitle "playchess.com"]
[Source "ChessBase"]
[SourceQuality "1"]
[TimeControl "40/5400+30:1800+30"]

1. e4 {[%emt 0:00:33]} c5 {[%emt 0:00:40]} 2. Nf3 {[%emt 0:00:08]} d6 {[%emt 0:00:08]} 3. Bb5+ {[%emt 0:00:07]} Nd7 {[%emt 0:01:10]} 4. O-O {[%emt 0:00:35]} Ngf6 {[%emt 0:00:44]} 5. Re1 {[%emt 0:00:21]} a6 {[%emt 0:01:03]} 6. Bf1 {[%emt 0:02:24]} g6 {[%emt 0:02:00]} 7. c3 {[%emt 0:00:33]} Bg7 {[%emt 0:01:43]} 8. d4 {[%emt 0:00:41]} O-O {[%emt 0:08:16]} 9. e5 {[%emt 0:04:49]} dxe5 {[%emt 0:00:43]} 10. dxe5 {[%emt 0:00:24]} Ne8 {[%emt 0:03:55]} 11. Bf4 {[%emt 0:09:08]} Nc7 {[%emt 0:00:46]} 12. a4 {[%emt 0:01:13]} Ne6 {[%emt 0:00:24]} 13. Bg3 {[%emt 0:00:20]} Qc7 {[%emt 0:02:38]} 14. Nbd2 {[%emt 0:05:13]} b6 {[%emt 0:02:50]} 15. Qc2 {[%emt 0:11:22]} Bb7 {[%emt 0:05:00]} 16. h4 {[%emt 0:00:48]} Rfd8 {[%emt 0:02:09]} 17. Rad1 {[%emt 0:04:26]} Bc6 {[%emt 0:06:04]} 18. Bc4 {[%emt 0:15:59]} Ndf8 {[%emt 0:04:15]} 19. Ng5 {[%emt 0:04:44]} Bd5 {[%emt 0:05:41]} 20. Bxd5 {[%emt 0:06:11]} Rxd5 {[%emt 0:00:04]} 21. Ndf3 {[%emt 0:00:59]} Rad8 {[%emt 0:01:04]} 22. Rxd5 {[%emt 0:00:32]} Rxd5 {[%emt 0:00:23]} 23. Qe4 {[%emt 0:06:48]} Qd8 {[%emt 0:04:59]} 24. Qc4 {[%emt 0:01:37]} Qa8 {[%emt 0:02:53]} 25. Qe2 {[%emt 0:04:20]} h6 {[%emt 0:03:05]} 26. Nxe6 {[%emt 0:01:34]} Nxe6 {[%emt 0:00:08]} 27. Qe4 {[%emt 0:02:18]} Qd8 {[%emt 0:00:50]} 28. Qc4 {[%emt 0:05:31]} Qa8 {[%emt 0:00:19]} 1/2-1/2

[Event "Hungarian Youth-ch U16 2022"]
[Site "Eger"]
[Date "2022.07.31"]
[Round "9.2"]
[White "Fule, Simon"]
[Black "Pasztor, Balazs"]
[Result "1/2-1/2"]
[ECO "B90"]
[WhiteElo "2271"]
[BlackElo "2336"]
[Annotator "RC"]
[PlyCount "48"]
[EventDate "2022.07.21"]
[EventType "tourn"]
[EventCountry "HUN"]
[SourceTitle "playchess.com"]
[Source "ChessBase"]
[SourceQuality "1"]
[TimeControl "40/5400+30:1800+30"]

1. e4 {[%emt 0:00:53]} c5 {[%emt 0:00:35]} 2. Nf3 {[%emt 0:00:04]} d6 {[%emt 0:00:05]} 3. d4 {[%emt 0:00:18]} cxd4 {[%emt 0:00:05]} 4. Nxd4 {[%emt 0:00:04]} Nf6 {[%emt 0:00:05]} 5. Nc3 {[%emt 0:00:17]} a6 {[%emt 0:00:05]} 6. f3 {[%emt 0:00:19]} e5 {[%emt 0:00:07]} 7. Nb3 {[%emt 0:00:03]} Be6 {[%emt 0:00:05]} 8. Be3 {[%emt 0:00:09]} h5 {[%emt 0:00:07]} 9. Nd5 {[%emt 0:00:17]} Bxd5 {[%emt 0:00:06]} 10. exd5 {[%emt 0:00:05]} Nbd7 {[%emt 0:00:05]} 11. Qd2 {[%emt 0:00:24]} g6 {[%emt 0:00:08]} 12. Be2 {[%emt 0:00:09]} Bg7 {[%emt 0:00:09]} 13. Na5 {[%emt 0:01:43]} Qc7 {[%emt 0:00:16]} 14. c4 {[%emt 0:00:13]} e4 {[%emt 0:00:12]} 15. Rc1 {[%emt 0:00:17]} exf3 {[%emt 0:02:50]} 16. gxf3 {[%emt 0:01:33]} O-O {[%emt 0:00:22]} 17. O-O {[%emt 0:00:08]} Rfe8 {[%emt 0:01:18]} 18. b4 {[%emt 0:00:19]} Rxe3 {[%emt 0:01:10]} 19. Qxe3 {[%emt 0:00:27]} Re8 {[%emt 0:00:08]} 20. Qd2 {[%emt 0:41:30]} Bh6 {[%emt 0:00:06]} 21. f4 {[%emt 0:00:23]} Ne4 {[%emt 0:00:14]} 22. Qe1 {[%emt 0:03:48]} Ndf6 {[%emt 0:17:00]} 23. Nb3 {[%emt 0:22:43]} Qd7 {[%emt 0:06:52]} 24. Qd1 {[%emt 0:11:04]} Qa4 {[%emt 0:06:07]} 1/2-1/2

[Event "Hungarian Youth-ch U16 2022"]
[Site "Eger"]
[Date "2022.07.31"]
[Round "9.4"]
[White "Tran, David"]
[Black "Borzsei, Andras"]
[Result "1-0"]
[ECO "B23"]
[WhiteElo "2090"]
[BlackElo "2002"]
[Annotator "NA RC"]
[PlyCount "63"]
[EventDate "2022.07.21"]
[EventType "tourn"]
[EventCountry "HUN"]
[SourceTitle "playchess.com"]
[Source "ChessBase"]
[SourceQuality "1"]
[TimeControl "40/5400+30:1800+30"]

1. e4 {[%emt 0:00:36]} c5 {[%emt 0:00:37]} 2. Nc3 {[%emt 0:00:21]} e6 {[%emt 0:00:07]} 3. g3 {[%emt 0:00:04]} a6 {[%emt 0:01:35]} 4. Bg2 {[%emt 0:01:08]} Nc6 {[%emt 0:00:35]} 5. d3 {[%emt 0:00:49]} b5 {[%emt 0:02:47]} 6. f4 {[%emt 0:01:25]} Bb7 {[%emt 0:00:30]} 7. Be3 {[%emt 0:02:53]} Qc7 {[%emt 0:02:22]} 8. Nf3 {[%emt 0:02:38]} d6 {[%emt 0:00:56]} 9. O-O {[%emt 0:01:31]} Nf6 {[%emt 0:01:00]} 10. h3 {[%emt 0:04:33]} Nd7 {[%emt 0:02:13]} (10... h6 $11 {remains equal.}) 11. g4 {[%emt 0:09:15]} (11. f5 $1 $14) 11... h6 {[%emt 0:12:15]} 12. Qd2 {[%emt 0:09:32]} Be7 {[%emt 0:02:20]} 13. Qf2 {[%emt 0:05:01]} O-O-O {[%emt 0:07:06]} 14. a3 {[%emt 0:12:56]} g5 {[%emt 0:21:07]} (14... Kb8 $11) 15. fxg5 {[%emt 0:04:41]} h5 {[%emt 0:00:17]} 16. gxh5 {[%emt 0:04:49]} Rxh5 {[%emt 0:00:23]} 17. Ne2 {[%emt 0:03:12]} Rg8 {[%emt 0:03:44]} 18. Nf4 {[%emt 0:01:49]} Rh7 {[%emt 0:01:20] [#]} (18... Rhh8 $14) 19. g6 $16 {[%emt 0:01:31]} Rhg7 {[%emt 0:03:53]} 20. gxf7 {[%emt 0:02:22]} Rxf7 {[%emt 0:00:17]} 21. Nxe6 {[%emt 0:00:07]} Qb8 {[%emt 0:00:27]} 22. Qd2 {[%emt 0:02:02]} Rf6 {[%emt 0:02:22]} 23. Nfg5 {[%emt 0:02:19]} Rfg6 {[%emt 0:00:51]} 24. Rf5 {[%emt 0:08:00]} Nd8 {[%emt 0:01:43]} 25. Nxd8 {[%emt 0:00:33]} Bxd8 {[%emt 0:01:07]} 26. h4 {[%emt 0:00:53]} Nf6 {[%emt 0:05:30]} 27. Bh3 {[%emt 0:02:10]} Kc7 {[%emt 0:00:43]} 28. Rxc5+ {[%emt 0:00:11]} Bc6 {[%emt 0:01:08]} 29. Be6 {[%emt 0:02:21]} Nxe4 {[%emt 0:01:12]} 30. dxe4 {[%emt 0:01:41]} Rxe6 {[%emt 0:00:12]} 31. Rxc6+ {[%emt 0:00:12]} Kxc6 {[%emt 0:00:38]} 32. Qd5+ {[%emt 0:00:03]} 1-0

[Event "Hungarian Youth-ch U16 2022"]
[Site "Eger"]
[Date "2022.07.31"]
[Round "9.5"]
[White "Harkai, Emma"]
[Black "Bodo, Boglarka"]
[Result "1/2-1/2"]
[ECO "C42"]
[WhiteElo "1761"]
[BlackElo "1722"]
[Annotator "NA RC"]
[PlyCount "90"]
[EventDate "2022.07.21"]
[EventType "tourn"]
[EventCountry "HUN"]
[SourceTitle "playchess.com"]
[Source "ChessBase"]
[SourceQuality "1"]
[TimeControl "40/5400+30:1800+30"]

1. e4 {[%emt 0:00:34]} e5 {[%emt 0:00:37]} 2. Nf3 {[%emt 0:00:08]} Nf6 {[%emt 0:00:05]} 3. Nc3 {[%emt 0:00:37]} Bb4 {[%emt 0:00:18]} 4. d3 {[%emt 0:01:36]} d5 {[%emt 0:00:17]} 5. exd5 {[%emt 0:01:26]} Nxd5 {[%emt 0:00:41]} 6. Bd2 {[%emt 0:00:41]} Nc6 {[%emt 0:00:31]} 7. Ne4 {[%emt 0:11:32]} Bxd2+ {[%emt 0:01:50]} 8. Nfxd2 {[%emt 0:07:19]} Bf5 {[%emt 0:02:27]} 9. g3 {[%emt 0:07:03]} Bxe4 {[%emt 0:06:23]} 10. Nxe4 {[%emt 0:01:30]} Qe7 {[%emt 0:05:42]} 11. Qd2 {[%emt 0:08:56]} Nd4 {[%emt 0:01:28]} 12. Bg2 {[%emt 0:01:39]} c6 {[%emt 0:08:37]} 13. O-O {[%emt 0:05:22]} O-O {[%emt 0:02:59]} 14. Rfe1 {[%emt 0:02:16]} Rad8 {[%emt 0:02:59]} 15. c3 {[%emt 0:09:09]} Nf5 {[%emt 0:03:19]} 16. Qe2 {[%emt 0:08:32]} Rfe8 {[%emt 0:03:17]} 17. Rad1 {[%emt 0:05:19]} h6 {[%emt 0:05:05]} 18. Nd2 {[%emt 0:03:39]} Nf6 {[%emt 0:01:49]} 19. Nc4 {[%emt 0:03:57]} Nd7 {[%emt 0:06:02]} 20. Qc2 {[%emt 0:03:53]} Nd6 {[%emt 0:03:36]} 21. Nd2 {[%emt 0:01:48]} Qf6 {[%emt 0:00:42]} 22. b4 {[%emt 0:02:09]} Qg6 {[%emt 0:02:32]} 23. a4 {[%emt 0:02:45]} f5 {[%emt 0:02:06]} 24. Kh1 {[%emt 0:01:28]} Nf6 {[%emt 0:00:41]} 25. Nf3 {[%emt 0:02:34]} e4 {[%emt 0:01:14]} 26. dxe4 {[%emt 0:01:16]} Ndxe4 {[%emt 0:01:11]} 27. Nd4 {[%emt 0:02:33]} Qh5 {[%emt 0:01:46]} 28. h4 {[%emt 0:01:33]} Rd7 {[%emt 0:03:18]} 29. Kg1 {[%emt 0:01:10]} Rde7 {[%emt 0:00:51]} 30. Rf1 {[%emt 0:01:32]} Nd5 {[%emt 0:01:26]} 31. Ne2 {[%emt 0:00:55]} Nxf2 {[%emt 0:09:59]} 32. Rxf2 {[%emt 0:00:36]} Rxe2 {[%emt 0:00:39]} 33. Bxd5+ {[%emt 0:00:46]} cxd5 {[%emt 0:00:41]} 34. Qxf5 {[%emt 0:00:12]} Re1+ {[%emt 0:01:01]} 35. Rxe1 {[%emt 0:00:08]} Rxe1+ {[%emt 0:00:10]} 36. Kg2 {[%emt 0:00:09]} Qxf5 {[%emt 0:00:59]} 37. Rxf5 {[%emt 0:00:02]} Rd1 {[%emt 0:00:15]} 38. a5 {[%emt 0:00:29]} Rd2+ {[%emt 0:00:39]} 39. Rf2 {[%emt 0:01:20]} Rd3 {[%emt 0:00:10]} 40. Rc2 {[%emt 0:00:00]} Kf7 {[%emt 0:00:00]} 41. Rf2+ {[%emt 0:08:47]} Ke6 {[%emt 0:01:08]} 42. Rf3 {[%emt 0:00:24]} Rd2+ {[%emt 0:00:40]} 43. Rf2 {[%emt 0:03:32]} Rd3 {[%emt 0:00:07]} 44. Rf3 {[%emt 0:00:11]} Rd2+ {[%emt 0:00:06]} 45. Rf2 {[%emt 0:00:09]} Ke5 1/2-1/2

[Event "Hungarian Youth-ch U16 2022"]
[Site "Eger"]
[Date "2022.07.31"]
[Round "9.6"]
[White "Sipos, Stefania"]
[Black "Kovacs, Veronika"]
[Result "1-0"]
[ECO "B10"]
[WhiteElo "1802"]
[BlackElo "1633"]
[Annotator "NA RC"]
[PlyCount "83"]
[EventDate "2022.07.21"]
[EventType "tourn"]
[EventCountry "HUN"]
[SourceTitle "playchess.com"]
[Source "ChessBase"]
[SourceQuality "1"]
[TimeControl "40/5400+30:1800+30"]

1. e4 {[%emt 0:00:33]} c6 {[%emt 0:00:33]} 2. c4 {[%emt 0:00:05]} d5 {[%emt 0:00:02]} 3. exd5 {[%emt 0:00:06]} cxd5 {[%emt 0:00:03]} 4. cxd5 {[%emt 0:00:06]} Nf6 {[%emt 0:00:06]} 5. Nc3 {[%emt 0:00:05]} Nxd5 {[%emt 0:00:11]} 6. Nf3 {[%emt 0:00:09]} Nc6 {[%emt 0:00:13]} 7. Bb5 {[%emt 0:00:20]} e6 {[%emt 0:00:41]} 8. d4 {[%emt 0:00:42]} Bd7 {[%emt 0:00:15]} 9. Bd3 {[%emt 0:03:31]} Bb4 {[%emt 0:03:10]} 10. Qc2 {[%emt 0:04:42] [#]} Rc8 $1 {[%emt 0:04:32]} 11. Bd2 {[%emt 0:10:23] [#]} Bxc3 {[%emt 0:02:28]} (11... Qb6 $1 $17 12. Nxd5 exd5 13. Bxb4 Qxb4+ 14. Qd2 O-O) 12. bxc3 {[%emt 0:03:09] [#]} Ncb4 $1 {[%emt 0:01:19]} 13. Qb1 {[%emt 0:00:20]} Nxd3+ {[%emt 0:01:50]} 14. Qxd3 {[%emt 0:00:07]} Qc7 {[%emt 0:03:20]} 15. O-O {[%emt 0:03:43]} O-O {[%emt 0:02:30]} (15... Nxc3 $2 16. Rfc1 $18) 16. Rac1 $11 {[%emt 0:04:58] keeps the balance.} Nf4 {[%emt 0:03:37]} 17. Qe3 {[%emt 0:08:02]} Nd5 {[%emt 0:04:38]} 18. Qg5 {[%emt 0:03:25]} h6 {[%emt 0:03:03]} (18... f6 $17 19. Qg4 Qc4) 19. Qh4 {[%emt 0:02:22]} Qd8 {[%emt 0:07:04]} 20. Qg3 {[%emt 0:03:29]} Kh7 {[%emt 0:07:05]} 21. Rfe1 {[%emt 0:04:25]} Bc6 {[%emt 0:14:26]} 22. Ne5 {[%emt 0:08:32]} Qf6 $16 {[%emt 0:04:24]} (22... Ne7 $11 {keeps the balance.}) 23. Ng4 {[%emt 0:13:29]} Qg6 {[%emt 0:04:08]} 24. Qh4 {[%emt 0:04:11]} f5 {[%emt 0:10:58]} 25. Ne5 {[%emt 0:02:39]} Qf6 {[%emt 0:01:12]} 26. Qh5 {[%emt 0:05:56]} Be8 {[%emt 0:04:21]} 27. Qe2 {[%emt 0:01:20]} g5 {[%emt 0:02:35]} 28. Nd3 {[%emt 0:01:22]} Bb5 {[%emt 0:02:01]} 29. Rb1 {[%emt 0:11:35]} Ba6 {[%emt 0:00:12]} 30. Qxe6 {[%emt 0:01:12]} Qxe6 {[%emt 0:11:17]} 31. Rxe6 {[%emt 0:00:05]} Nxc3 {[%emt 0:00:50]} 32. Bxc3 {[%emt 0:00:45]} Rxc3 {[%emt 0:00:04]} 33. Nc5 {[%emt 0:00:21]} Rc8 {[%emt 0:00:30]} 34. h3 {[%emt 0:00:21]} Ra3 {[%emt 0:02:07]} 35. Nxa6 {[%emt 0:00:22]} bxa6 {[%emt 0:00:09]} 36. Rb7+ {[%emt 0:00:07]} Kg8 {[%emt 0:00:11]} 37. Rg6+ {[%emt 0:00:43]} Kf8 {[%emt 0:01:06]} 38. Rxh6 {[%emt 0:00:17]} Kg8 {[%emt 0:01:11]} 39. Rxa7 {[%emt 0:01:17]} Rxa2 {[%emt 0:00:43]} 40. Rhxa6 {[%emt 0:00:00]} Rc1+ {[%emt 0:00:00]} 41. Kh2 {[%emt 0:00:28]} Rxf2 {[%emt 0:01:08]} 42. Rg6+ {[%emt 0:04:12]} 1-0